bitfinex-derivatives/quotes_BTCF0:USTF0_20250602
["timestamp","ask_amount","ask_price","bid_price","bid_amount"]
[1748885019394,0.08637221,104430.0,104420.0,4.37469531]
[1748885020795,0.08637221,104430.0,104420.0,4.28565084]
[1748885021191,0.08637221,104430.0,104420.0,4.37466361]
[1748885021795,0.08637221,104430.0,104420.0,4.58139804]
[1748885022682,0.05872123,104430.0,104420.0,4.58139804]
[1748885024083,0.05872123,104430.0,104420.0,4.37462122]
[1748885025801,0.05872123,104430.0,104420.0,4.34639586]
[1748885026298,0.05872123,104430.0,104420.0,4.3463968]
[1748885026890,0.05872123,104430.0,104420.0,4.24997829]
[1748885027089,0.05872123,104430.0,104420.0,4.34638557]
[1748885027495,0.05872123,104430.0,104420.0,4.70718557]
[1748885028793,0.03045123,104430.0,104420.0,4.70718557]
[1748885028995,0.00164123,104430.0,104420.0,4.70719105]
[1748885029497,0.0002,104430.0,104420.0,4.86207819]
[1748885029698,0.0002,104430.0,104420.0,4.91399117]
[1748885030202,0.0002,104430.0,104420.0,4.8249784]
[1748885031397,0.0002,104430.0,104420.0,4.61820158]
[1748885032203,0.0002,104430.0,104420.0,4.73688587]
[1748885033102,0.0002,104430.0,104420.0,4.28648587]
[1748885033304,0.0002,104430.0,104420.0,4.73452587]
[1748885033507,0.0002,104430.0,104420.0,4.73461193]
[1748885034100,0.0002,104430.0,104420.0,4.73461407]
[1748885036408,0.0638,104440.0,104430.0,0.1914266]
[1748885036706,0.12706072,104440.0,104430.0,1.67546251]
[1748885037103,0.0303,104450.0,104440.0,0.1914082]
[1748885037104,0.01692687,104450.0,104440.0,0.1914082]
[1748885037297,0.1913561,104470.0,104460.0,0.1913716]
[1748885037496,0.1913561,104470.0,104460.0,1.58309782]
[1748885038100,0.1,104470.0,104460.0,1.58309782]
[1748885038304,0.2915531,104470.0,104460.0,1.58309782]
[1748885038506,0.1,104470.0,104460.0,2.69475464]
[1748885038702,0.1,104470.0,104460.0,2.70910464]
[1748885038906,0.1002,104470.0,104460.0,2.70910464]
[1748885039101,0.1,104470.0,104460.0,2.70910464]
[1748885039302,0.1002,104470.0,104460.0,2.78669278]
[1748885039710,0.1002,104470.0,104460.0,3.14749278]
[1748885040411,0.1635,104470.0,104460.0,3.20691239]
[1748885040602,0.1633,104470.0,104460.0,3.20691239]
[1748885040805,0.1635,104470.0,104460.0,3.00013557]
[1748885041111,0.1635,104470.0,104460.0,3.00017159]
[1748885041308,0.1635,104470.0,104460.0,3.00953554]
[1748885042109,0.1633,104470.0,104460.0,3.21631236]
[1748885042310,0.1946,104470.0,104460.0,3.21631236]
[1748885043615,0.3859531,104470.0,104460.0,2.45513554]
[1748885043808,0.59272992,104470.0,104460.0,2.45635532]
[1748885044114,0.59272992,104470.0,104460.0,2.65015532]
[1748885044307,0.3859531,104470.0,104460.0,2.65015532]
[1748885044614,0.59272992,104470.0,104460.0,0.93667512]
[1748885044913,0.95352992,104470.0,104460.0,1.32412384]
[1748885045116,0.95352992,104470.0,104460.0,1.13412404]
[1748885045316,0.59272992,104470.0,104460.0,1.13412404]
[1748885045713,0.59272992,104470.0,104460.0,0.57928404]
[1748885046018,0.59272992,104470.0,104460.0,1.08932891]
[1748885046409,0.59272992,104470.0,104460.0,0.53468891]
[1748885046607,0.59272992,104470.0,104460.0,1.08924891]
[1748885046809,0.95352992,104470.0,104460.0,1.08924891]
[1748885047316,0.95352992,104470.0,104460.0,1.08916891]
[1748885047917,0.95352992,104470.0,104460.0,1.08912891]
[1748885048107,0.95352992,104470.0,104460.0,0.89775731]
[1748885048303,0.96352992,104470.0,104460.0,0.65574209]
[1748885048510,0.96352992,104470.0,104460.0,0.20810209]
[1748885048917,0.96352992,104470.0,104460.0,0.64621814]
[1748885049309,0.96352992,104470.0,104460.0,0.67621814]
[1748885049720,1.13925392,104470.0,104460.0,0.09193814]
[1748885050020,1.13925392,104470.0,104460.0,0.53929814]
[1748885050202,1.13925392,104470.0,104460.0,0.53925814]
[1748885050407,1.33925392,104470.0,104460.0,0.53925814]
[1748885051011,1.33925392,104470.0,104460.0,0.09193814]
[1748885051324,1.33925392,104470.0,104460.0,0.53913814]
[1748885051617,1.16352992,104470.0,104460.0,0.53913814]
[1748885051918,1.16352992,104470.0,104460.0,0.54887609]
[1748885052217,1.16352992,104470.0,104460.0,0.55887609]
[1748885053022,1.16352992,104470.0,104460.0,0.75024679]
[1748885053914,0.80272992,104470.0,104460.0,0.75024679]
[1748885054515,1.16352992,104470.0,104460.0,0.74050884]
[1748885055210,0.80272992,104470.0,104460.0,0.74050884]
[1748885055615,1.16352992,104470.0,104460.0,0.54913814]
[1748885056620,1.24352992,104470.0,104460.0,0.53913814]
[1748885057217,1.24352992,104470.0,104460.0,0.09193814]
[1748885057420,1.24352992,104470.0,104460.0,0.53965814]
[1748885057718,1.24352992,104470.0,104460.0,0.54929666]
[1748885058121,1.24352992,104470.0,104460.0,0.53965814]
[1748885059817,1.24352992,104470.0,104460.0,0.53933814]
[1748885060527,1.24352992,104470.0,104460.0,0.09193814]
[1748885060727,1.24352992,104470.0,104460.0,0.53925814]
[1748885061322,0.6448531,104470.0,104460.0,1.09202984]
[1748885061525,0.6448531,104470.0,104460.0,1.67415582]
[1748885061526,0.5548531,104470.0,104460.0,1.67415582]
[1748885061729,0.5546531,104470.0,104460.0,1.88415582]
[1748885061926,0.3548531,104470.0,104460.0,1.677379]
[1748885062128,0.56142992,104470.0,104460.0,1.229459]
[1748885062316,0.59452992,104470.0,104460.0,1.423579]
[1748885062830,0.59452992,104470.0,104460.0,1.784379]
[1748885063427,0.3877531,104470.0,104460.0,1.784379]
[1748885063928,0.3877531,104470.0,104460.0,1.79036287]
[1748885064227,0.3877531,104470.0,104460.0,1.79636287]
[1748885064418,0.3548531,104470.0,104460.0,1.79636287]
[1748885064619,0.2913534,104470.0,104460.0,2.04772875]
[1748885064826,0.2915534,104470.0,104460.0,2.04172875]
[1748885065230,0.2915534,104470.0,104460.0,3.48106043]
[1748885065418,0.2915534,104470.0,104460.0,3.47506043]
[1748885065623,0.2915534,104470.0,104460.0,1.97506043]
[1748885065824,0.1002,104470.0,104460.0,2.03568989]
[1748885066030,0.1002,104470.0,104460.0,3.54148004]
[1748885066222,0.1,104470.0,104460.0,3.54148004]
[1748885066422,0.1002,104470.0,104460.0,3.54148004]
[1748885066915,0.2915528,104470.0,104460.0,3.60909474]
[1748885067529,0.2915528,104470.0,104460.0,3.60904009]
[1748885067723,0.1002,104470.0,104460.0,3.60904009]
[1748885068229,0.2915528,104470.0,104460.0,3.60904009]
[1748885068430,0.1002,104470.0,104460.0,3.60904009]
[1748885068932,0.1002,104470.0,104460.0,3.62122737]
[1748885069133,0.1,104470.0,104460.0,3.57666452]
[1748885069430,0.1002,104470.0,104460.0,3.62122048]
[1748885069630,0.0002,104470.0,104460.0,3.62122048]
[1748885070930,0.0002,104470.0,104460.0,3.5484185]
[1748885071127,0.0002,104470.0,104460.0,2.0484185]
[1748885071524,0.1915529,104470.0,104460.0,3.5484185]
[1748885071931,0.1915529,104470.0,104460.0,3.34164168]
[1748885072133,0.0002,104470.0,104460.0,2.84732035]
[1748885072434,0.0002,104470.0,104460.0,3.40188035]
[1748885072629,0.1915528,104470.0,104460.0,3.40188035]
[1748885073030,0.1915528,104470.0,104460.0,3.40186797]
[1748885073428,0.0002,104470.0,104460.0,3.40186797]
[1748885073728,0.1915528,104470.0,104460.0,3.3412654]
[1748885073937,0.1915528,104470.0,104460.0,3.40185899]
[1748885074329,0.1915528,104470.0,104460.0,3.40157899]
[1748885075231,0.1915528,104470.0,104460.0,3.40157401]
[1748885075536,0.1915528,104470.0,104460.0,3.60835083]
[1748885076334,0.0002,104470.0,104460.0,3.60835083]
[1748885076839,0.2391693,104480.0,104470.0,0.1913528]
[1748885077030,0.1913353,104480.0,104470.0,1.18360324]
[1748885077231,0.1913353,104480.0,104470.0,1.28874832]
[1748885077441,0.4019283,104490.0,104480.0,0.1913345]
[1748885077639,0.4019283,104490.0,104480.0,1.48234812]
[1748885077935,0.4019283,104490.0,104480.0,1.12154812]
[1748885078239,0.5019283,104490.0,104480.0,1.48234812]
[1748885078625,0.4062623,104490.0,104480.0,1.48234812]
[1748885079024,0.4062623,104490.0,104480.0,1.4303745]
[1748885079225,0.4062623,104490.0,104480.0,1.48232218]
[1748885079738,0.3729623,104490.0,104480.0,1.49667218]
[1748885080034,0.102,104490.0,104480.0,1.49667218]
[1748885080335,0.102,104490.0,104480.0,1.56426577]
[1748885080336,0.1022,104490.0,104480.0,1.56426577]
[1748885080635,0.1022,104490.0,104480.0,1.61578873]
[1748885080636,0.2933162,104490.0,104480.0,1.61578873]
[1748885080841,0.2935162,104490.0,104480.0,3.11574873]
[1748885081429,0.1022,104490.0,104480.0,3.11574873]
[1748885081630,0.2933162,104490.0,104480.0,3.11574873]
[1748885081831,0.2935162,104490.0,104480.0,3.11574873]
[1748885082743,0.2935162,104490.0,104480.0,3.11570343]
[1748885083424,0.2935162,104490.0,104480.0,3.32248025]
[1748885084440,0.2935162,104490.0,104480.0,3.27798517]
[1748885084836,0.2935162,104490.0,104480.0,3.07120835]
[1748885085550,0.2935162,104490.0,104480.0,3.11570343]
[1748885085839,0.2935162,104490.0,104480.0,3.05510984]
[1748885086039,0.2935162,104490.0,104480.0,2.45641476]
[1748885086233,0.2935162,104490.0,104480.0,3.01041476]
[1748885086643,0.2935162,104490.0,104480.0,3.01036025]
[1748885086843,0.3246162,104490.0,104480.0,3.01036025]
[1748885087230,0.3246162,104490.0,104480.0,3.01034994]
[1748885087943,0.3246162,104490.0,104480.0,3.21712676]
[1748885090845,0.3572162,104490.0,104480.0,3.01034994]
[1748885092644,0.56399302,104490.0,104480.0,1.90421544]
[1748885092847,0.59689302,104490.0,104480.0,0.86413544]
[1748885093145,0.59689302,104490.0,104480.0,1.0036045]
[1748885094140,0.59689302,104490.0,104480.0,0.9966045]
[1748885094539,0.59689302,104490.0,104480.0,0.9896045]
[1748885095344,0.86689302,104490.0,104480.0,0.9896045]
[1748885095546,0.66689302,104490.0,104480.0,0.9896045]
[1748885095741,0.66689302,104490.0,104480.0,1.04133522]
[1748885096050,0.66689302,104490.0,104480.0,0.81133522]
[1748885097051,0.66689302,104490.0,104480.0,1.15353522]
[1748885098150,0.66689302,104490.0,104480.0,0.70650341]
[1748885098450,0.66689302,104490.0,104480.0,1.15354341]
[1748885099542,0.66689302,104490.0,104480.0,0.84354341]
[1748885100246,1.02769302,104490.0,104480.0,0.06608891]
[1748885100551,1.02769302,104490.0,104480.0,0.61964891]
[1748885102055,0.66689302,104490.0,104480.0,0.81098331]
[1748885102247,1.02769302,104490.0,104480.0,0.81098331]
[1748885102546,0.66689302,104490.0,104480.0,0.81098331]
[1748885103053,0.66689302,104490.0,104480.0,0.84338331]
[1748885103347,0.4301162,104490.0,104480.0,0.88797538]
[1748885103541,0.63689302,104490.0,104480.0,0.94927538]
[1748885104248,0.3972162,104490.0,104480.0,0.94927538]
[1748885104642,0.3970162,104490.0,104480.0,0.94927538]
[1748885104952,0.3972162,104490.0,104480.0,1.06927538]
[1748885105149,0.102,104490.0,104480.0,1.5168522]
[1748885105351,0.102,104490.0,104480.0,1.94749742]
[1748885105352,0.1022,104490.0,104480.0,1.94749742]
[1748885105655,0.2933161,104490.0,104480.0,1.94727611]
[1748885105861,0.1022,104490.0,104480.0,3.44727611]
[1748885106053,0.2935162,104490.0,104480.0,3.44727611]
[1748885106347,0.2935162,104490.0,104480.0,3.40268404]
[1748885106545,0.50029302,104490.0,104480.0,2.64234722]
[1748885106755,0.56419302,104490.0,104480.0,3.19586722]
[1748885106941,0.3574162,104490.0,104480.0,3.19586722]
[1748885107652,0.3574162,104490.0,104480.0,3.19588424]
[1748885109449,0.3574162,104490.0,104480.0,3.2686585]
[1748885109951,0.3245162,104490.0,104480.0,3.2686585]
[1748885110453,0.2935162,104490.0,104480.0,3.47543532]
[1748885110952,0.2935162,104490.0,104480.0,3.4633034]
[1748885111346,0.1022,104490.0,104480.0,3.4633034]
[1748885111747,0.2933162,104490.0,104480.0,3.25652658]
[1748885111953,0.3252162,104490.0,104480.0,3.25652658]
[1748885113147,0.3252162,104490.0,104480.0,3.26832714]
[1748885113654,0.3252162,104490.0,104480.0,3.14315728]
[1748885113955,0.1022,104490.0,104480.0,3.40237359]
[1748885114150,0.102,104490.0,104480.0,3.40237359]
[1748885114356,0.1022,104490.0,104480.0,3.40237359]
[1748885114551,0.1022,104490.0,104480.0,3.47514377]
[1748885115556,0.1022,104490.0,104480.0,3.40237359]
[1748885115952,0.1022,104490.0,104480.0,3.56428538]
[1748885116159,0.102,104490.0,104480.0,3.56428538]
[1748885116355,0.065639,104490.0,104480.0,3.98454714]
[1748885116555,0.2258622,104520.0,104510.0,0.1912795]
[1748885116758,0.2258622,104520.0,104510.0,1.41451157]
[1748885116963,0.002,104520.0,104510.0,1.50845708]
[1748885117259,0.0022,104520.0,104510.0,1.56237735]
[1748885117558,0.1932611,104520.0,104510.0,1.6557924]
[1748885117761,0.2248611,104520.0,104510.0,1.75967971]
[1748885118058,0.2248611,104520.0,104510.0,1.65575113]
[1748885118755,0.2248611,104520.0,104510.0,1.67010113]
[1748885119554,0.2248611,104520.0,104510.0,1.87687795]
[1748885120147,0.0022,104520.0,104510.0,1.87687795]
[1748885120357,0.1934613,104520.0,104510.0,1.87687795]
[1748885120556,0.0022,104520.0,104510.0,1.87640438]
[1748885121555,0.002,104520.0,104510.0,1.93697251]
[1748885121952,0.0022,104520.0,104510.0,1.93579238]
[1748885122156,0.002,104520.0,104510.0,1.93579238]
[1748885122476,0.0022,104520.0,104510.0,1.93579238]
[1748885122662,0.0022,104520.0,104510.0,1.87640438]
[1748885122862,0.410604,104550.0,104540.0,0.1912246]
[1748885122863,0.193207,104550.0,104540.0,0.1912246]
[1748885123164,0.193207,104550.0,104540.0,2.62855564]
[1748885123351,0.002,104550.0,104540.0,2.51767882]
[1748885123551,0.1932063,104550.0,104540.0,2.51767882]
[1748885123768,0.1934063,104550.0,104540.0,2.51767882]
[1748885123962,0.2932063,104550.0,104540.0,2.51767882]
[1748885124462,0.50018312,104550.0,104540.0,2.1568097]
[1748885124663,0.55438312,104550.0,104540.0,1.7968097]
[1748885124866,0.55438312,104550.0,104540.0,2.0649246]
[1748885125375,0.55438312,104550.0,104540.0,2.0648846]
[1748885125553,0.55438312,104550.0,104540.0,1.72642202]
[1748885125753,0.55438312,104550.0,104540.0,2.07642202]
[1748885126157,0.57438312,104550.0,104540.0,1.75642202]
[1748885127370,0.57438312,104550.0,104540.0,1.30962202]
[1748885127565,0.3376063,104550.0,104540.0,2.08642202]
[1748885127760,0.1644,104550.0,104540.0,2.35489884]
[1748885127964,0.3556063,104550.0,104540.0,2.35489884]
[1748885128158,0.3554063,104550.0,104540.0,2.35489884]
[1748885128358,0.3556063,104550.0,104540.0,2.35489884]
[1748885128562,0.3554063,104550.0,104540.0,2.35489884]
[1748885128966,0.3556063,104550.0,104540.0,2.35489884]
[1748885129364,0.1327,104550.0,104540.0,2.35489884]
[1748885129560,0.3237063,104550.0,104540.0,2.35489884]
[1748885129981,0.3239063,104550.0,104540.0,2.35489884]
[1748885130865,0.3239063,104550.0,104540.0,2.50892202]
[1748885131061,0.3239063,104550.0,104540.0,2.71569884]
[1748885132067,0.3570063,104550.0,104540.0,2.71569884]
[1748885132572,0.3570063,104550.0,104540.0,1.95564202]
[1748885132876,0.56378312,104550.0,104540.0,2.08630202]
[1748885133060,0.56378312,104550.0,104540.0,2.09330202]
[1748885134171,0.56378312,104550.0,104540.0,2.08397454]
[1748885134377,0.3570063,104550.0,104540.0,2.07697454]
[1748885134974,0.3570063,104550.0,104540.0,1.33258994]
[1748885135270,0.57378312,104550.0,104540.0,2.07693454]
[1748885135774,0.93458312,104550.0,104540.0,2.07693454]
[1748885136163,0.93458312,104550.0,104540.0,1.18182202]
[1748885138071,0.93458312,104550.0,104540.0,0.07747742]
[1748885138370,1.33135994,104550.0,104540.0,0.55312]
[1748885138563,1.33135994,104550.0,104540.0,0.7443448]
[1748885138767,1.12458312,104550.0,104540.0,0.7443448]
[1748885138967,1.32458312,104550.0,104540.0,0.7443448]
[1748885139168,1.32458312,104550.0,104540.0,0.81910209]
[1748885140175,1.1178063,104550.0,104540.0,0.81910209]
[1748885140378,1.1178063,104550.0,104540.0,0.85230209]
[1748885140576,1.1178063,104550.0,104540.0,0.88410209]
[1748885141079,1.32458312,104550.0,104540.0,0.88410209]
[1748885143077,1.32458312,104550.0,104540.0,0.85090209]
[1748885143380,1.32458312,104550.0,104540.0,0.81910209]
[1748885143577,1.13458312,104550.0,104540.0,0.81910209]
[1748885143973,1.13458312,104550.0,104540.0,0.83344209]
[1748885144275,1.13458312,104550.0,104540.0,0.82411366]
[1748885145686,1.54336734,104550.0,104540.0,0.1064]
[1748885145872,1.73477374,104550.0,104540.0,0.55312]
[1748885146384,0.1912247,104540.0,104530.0,0.29989139]
[1748885146683,0.7938247,104540.0,104530.0,0.85060671]
[1748885146871,0.63980152,104540.0,104530.0,0.85060671]
[1748885147066,0.7938247,104540.0,104530.0,0.88350671]
[1748885147265,0.2827247,104540.0,104530.0,1.18061139]
[1748885147468,0.3827247,104540.0,104530.0,1.30828144]
[1748885147675,0.3827247,104540.0,104530.0,1.29828144]
[1748885147876,0.3527247,104540.0,104530.0,1.56828144]
[1748885148378,0.3529247,104540.0,104530.0,1.56828144]
[1748885148579,0.3527247,104540.0,104530.0,1.56828144]
[1748885148773,0.3527247,104540.0,104530.0,1.58262144]
[1748885149080,0.3529247,104540.0,104530.0,1.58262144]
[1748885149879,0.3529247,104540.0,104530.0,1.02950144]
[1748885150082,0.96050152,104540.0,104530.0,0.96182144]
[1748885150479,0.96050152,104540.0,104530.0,0.90981766]
[1748885150678,0.3929247,104540.0,104530.0,0.96177854]
[1748885150877,0.59970152,104540.0,104530.0,0.96177854]
[1748885151181,0.96050152,104540.0,104530.0,0.96177854]
[1748885151382,0.59970152,104540.0,104530.0,0.96177854]
[1748885152272,0.3929247,104540.0,104530.0,0.96177854]
[1748885152473,0.3929247,104540.0,104530.0,0.90981766]
[1748885152877,0.3616247,104540.0,104530.0,1.27061766]
[1748885153085,0.2912247,104540.0,104530.0,1.83739448]
[1748885153280,0.2914247,104540.0,104530.0,1.83739448]
[1748885153582,0.2912247,104540.0,104530.0,1.88912754]
[1748885153785,0.2914247,104540.0,104530.0,1.93364538]
[1748885154087,0.01090271,104540.0,104530.0,1.94848466]
[1748885154279,0.2868168,104550.0,104540.0,0.1912247]
[1748885154582,0.2868168,104550.0,104540.0,1.2621675]
[1748885155687,0.3868168,104550.0,104540.0,1.2621675]
[1748885157680,0.3868168,104550.0,104540.0,1.05539068]
[1748885157885,0.98479362,104550.0,104540.0,1.06577308]
[1748885158087,1.05959362,104550.0,104540.0,1.08577308]
[1748885158384,0.69879362,104550.0,104540.0,1.23238626]
[1748885158691,0.69879362,104550.0,104540.0,1.2768736]
[1748885159283,0.69879362,104550.0,104540.0,0.3837936]
[1748885159485,0.69879362,104550.0,104540.0,0.9468736]
[1748885159676,0.69879362,104550.0,104540.0,0.90238626]
[1748885160080,0.69879362,104550.0,104540.0,0.9468736]
[1748885160279,1.05959362,104550.0,104540.0,0.71116156]
[1748885160490,1.05959362,104550.0,104540.0,0.90238626]
[1748885162084,1.05959362,104550.0,104540.0,0.64686156]
[1748885162280,1.26637044,104550.0,104540.0,0.16795971]
[1748885162491,1.05959362,104550.0,104540.0,0.1164]
[1748885162789,1.25959362,104550.0,104540.0,0.56324]
[1748885163088,1.0528168,104550.0,104540.0,0.7544646]
[1748885163278,1.25959362,104550.0,104540.0,0.7544646]
[1748885163481,1.25959362,104550.0,104540.0,0.8163646]
[1748885164281,1.25959362,104550.0,104540.0,0.62514]
[1748885164684,1.25959362,104550.0,104540.0,0.80703623]
[1748885164989,1.25959362,104550.0,104540.0,0.8063647]
[1748885165189,1.25959362,104550.0,104540.0,0.61514]
[1748885165388,0.1912247,104540.0,104530.0,0.47092513]
[1748885165593,0.2525247,104540.0,104530.0,1.28928513]
[1748885165888,0.45930152,104540.0,104530.0,1.34085279]
[1748885167094,0.55930152,104540.0,104530.0,1.34085279]
[1748885167288,0.55930152,104540.0,104530.0,1.32479855]
[1748885168298,0.55930152,104540.0,104530.0,1.28032882]
[1748885168489,0.55930152,104540.0,104530.0,1.32479855]
[1748885168693,0.56930152,104540.0,104530.0,1.28032882]
[1748885169698,0.56930152,104540.0,104530.0,1.32479855]
[1748885170396,0.93010152,104540.0,104530.0,1.32479855]
[1748885170593,0.93010152,104540.0,104530.0,0.43912232]
[1748885170784,0.93010152,104540.0,104530.0,0.14382232]
[1748885171098,1.03576152,104540.0,104530.0,0.59178232]
[1748885172388,1.03576152,104540.0,104530.0,0.54009466]
[1748885172595,1.02576152,104540.0,104530.0,0.54009466]
[1748885172794,1.25576152,104540.0,104530.0,0.54009466]
[1748885173197,1.25576152,104540.0,104530.0,0.09225466]
[1748885173395,1.44576152,104540.0,104530.0,0.09225466]
[1748885173601,0.1912612,104520.0,104510.0,0.10500721]
[1748885173900,0.1912795,104510.0,104500.0,0.04621101]
[1748885174194,0.91275632,104510.0,104500.0,0.49609101]
[1748885174394,1.00844432,104510.0,104500.0,0.50390532]
[1748885174600,1.00844432,104510.0,104500.0,0.45230526]
[1748885174804,1.00844432,104510.0,104500.0,0.45226526]
[1748885175497,0.98832609,104510.0,104500.0,0.7215151]
[1748885175707,0.98852609,104510.0,104500.0,0.5302173]
[1748885176095,1.08852609,104510.0,104500.0,0.5302173]
[1748885176502,1.08852609,104510.0,104500.0,0.45226526]
[1748885176898,1.08852609,104510.0,104500.0,0.46661526]
[1748885177099,1.09152609,104510.0,104500.0,0.46661526]
[1748885177716,1.09252609,104510.0,104500.0,0.46652335]
[1748885178107,1.18821409,104510.0,104500.0,0.01636335]
[1748885178309,1.24821409,104510.0,104500.0,0.46616335]
[1748885178501,1.24821409,104510.0,104500.0,0.01636335]
[1748885179408,1.44821409,104510.0,104500.0,0.01636335]
[1748885180209,1.44801409,104510.0,104500.0,0.01636335]
[1748885180406,1.44821409,104510.0,104500.0,0.01636335]
[1748885180798,1.44821409,104510.0,104500.0,0.0070308]
[1748885181399,1.44821409,104510.0,104500.0,0.1983289]
[1748885181400,1.0701795,104510.0,104500.0,0.1983289]
[1748885181600,1.18252609,104510.0,104500.0,0.0992308]
[1748885181801,1.18252609,104510.0,104500.0,0.1637308]
[1748885182303,1.38252609,104510.0,104500.0,0.1637308]
[1748885182517,1.37852609,104510.0,104500.0,0.0392308]
[1748885182720,1.38152609,104510.0,104500.0,0.0392308]
[1748885183116,1.38132609,104510.0,104500.0,0.0725308]
[1748885183421,1.38152609,104510.0,104500.0,0.0725308]
[1748885184017,1.0391795,104510.0,104500.0,0.2638291]
[1748885184216,1.0389795,104510.0,104500.0,0.3550291]
[1748885184417,1.32152609,104510.0,104500.0,0.3550291]
[1748885185222,1.44152609,104510.0,104500.0,0.4566708]
[1748885186020,1.44152609,104510.0,104500.0,0.0070308]
[1748885187224,1.44152609,104510.0,104500.0,0.0716308]
[1748885188417,1.44152609,104510.0,104500.0,0.5207908]
[1748885189118,1.44152609,104510.0,104500.0,0.4888908]
[1748885189319,1.44152609,104510.0,104500.0,0.4561908]
[1748885189518,0.1912987,104500.0,104490.0,0.00014373]
[1748885189721,1.07834529,104500.0,104490.0,0.44938373]
[1748885190615,1.03834529,104500.0,104490.0,0.44938373]
[1748885191020,1.13834529,104500.0,104490.0,0.44938373]
[1748885191420,1.20034529,104500.0,104490.0,0.44938373]
[1748885192022,1.20034529,104500.0,104490.0,0.44910373]
[1748885192224,1.20034529,104500.0,104490.0,0.00014373]
[1748885192523,1.20134529,104500.0,104490.0,0.46341373]
[1748885192729,1.20134529,104500.0,104490.0,0.46337373]
[1748885192916,1.20134529,104500.0,104490.0,0.01449373]
[1748885195128,1.20134529,104500.0,104490.0,0.46305373]
[1748885195328,1.20134529,104500.0,104490.0,0.01449373]
[1748885195522,1.1255621,104500.0,104490.0,0.01449373]
[1748885195730,1.1255621,104500.0,104490.0,0.46293373]
[1748885196129,1.1255621,104500.0,104490.0,0.01449373]
[1748885197226,1.3255621,104500.0,104490.0,0.01449373]
[1748885198829,1.3255621,104500.0,104490.0,0.04739373]
[1748885199127,1.5155621,104500.0,104490.0,0.01449373]
[1748885200022,0.191317,104490.0,104480.0,0.0328]
[1748885200228,0.1913354,104480.0,104470.0,0.51372587]
[1748885200426,0.8318988,104480.0,104470.0,0.91659625]
[1748885200935,0.3978988,104480.0,104470.0,1.13623132]
[1748885201122,0.1915354,104480.0,104470.0,1.13623132]
[1748885201825,0.2915354,104480.0,104470.0,1.13623132]
[1748885202223,0.2915354,104480.0,104470.0,1.14423132]
[1748885202423,0.2915354,104480.0,104470.0,1.23583288]
[1748885203627,0.4980988,104480.0,104470.0,1.1843162]
[1748885203829,0.2915354,104480.0,104470.0,1.23590903]
[1748885204017,0.2915354,104480.0,104470.0,1.59670903]
[1748885204223,0.2913354,104480.0,104470.0,1.59670903]
[1748885204429,0.2915354,104480.0,104470.0,1.59670903]
[1748885204628,0.2913354,104480.0,104470.0,1.59670903]
[1748885204827,0.2915354,104480.0,104470.0,1.59670903]
[1748885205131,0.2915354,104480.0,104470.0,1.6571072]
[1748885205329,0.1002,104480.0,104470.0,1.8956706]
[1748885205533,0.1002,104480.0,104470.0,2.30059997]
[1748885205728,0.1,104480.0,104470.0,2.30059997]
[1748885205929,0.2915353,104480.0,104470.0,2.30059997]
[1748885207424,0.2915353,104480.0,104470.0,2.18979377]
[1748885207631,0.2915353,104480.0,104470.0,2.30074775]
[1748885208323,0.2915353,104480.0,104470.0,1.74846835]
[1748885210337,0.1002,104480.0,104470.0,2.07910387]
[1748885210543,0.1002,104480.0,104470.0,1.99649885]
[1748885210739,0.28713333,104490.0,104480.0,0.1913353]
[1748885210937,0.28713333,104490.0,104480.0,1.26121309]
[1748885211234,0.28713333,104490.0,104480.0,1.320573]
[1748885211629,0.38713333,104490.0,104480.0,1.320573]
[1748885212942,0.29347283,104490.0,104480.0,1.320573]
[1748885215043,0.29347283,104490.0,104480.0,1.26898585]
[1748885215249,0.29347283,104490.0,104480.0,1.32097555]
[1748885215750,0.29147283,104490.0,104480.0,1.12241215]
[1748885216343,0.29147283,104490.0,104480.0,1.06186491]
[1748885217560,0.29147283,104490.0,104480.0,1.56953215]
[1748885217745,0.29147283,104490.0,104480.0,1.50898491]
[1748885218254,0.85883623,104490.0,104480.0,0.59338491]
[1748885218551,0.91103623,104490.0,104480.0,0.888985]
[1748885218750,0.97643623,104490.0,104480.0,0.888985]
[1748885219049,0.97643623,104490.0,104480.0,0.88897975]
[1748885219241,1.18299963,104490.0,104480.0,0.23036445]
[1748885219440,0.97643623,104490.0,104480.0,0.67808445]
[1748885220043,0.97843623,104490.0,104480.0,0.67008445]
[1748885220749,0.97843623,104490.0,104480.0,0.66896445]
[1748885221150,1.18499963,104490.0,104480.0,0.05198445]
[1748885221652,1.18499963,104490.0,104480.0,0.49938445]
[1748885221845,1.38499963,104490.0,104480.0,0.49938445]
[1748885222853,1.38499963,104490.0,104480.0,0.05198445]
[1748885223152,1.38499963,104490.0,104480.0,0.49922445]
[1748885223741,1.17843623,104490.0,104480.0,0.51361445]
[1748885224046,0.81763623,104490.0,104480.0,0.51361445]
[1748885224745,0.81783623,104490.0,104480.0,0.57781445]
[1748885225048,1.17863623,104490.0,104480.0,0.57781445]
[1748885225848,0.81783623,104490.0,104480.0,0.51361445]
[1748885226045,1.38519963,104490.0,104480.0,0.46163]
[1748885226246,1.38519963,104490.0,104480.0,0.01435]
[1748885226247,1.42519963,104490.0,104480.0,0.01435]
[1748885226440,1.42519963,104490.0,104480.0,0.46147]
[1748885227649,1.42519963,104490.0,104480.0,0.46171]
[1748885227956,1.70519963,104490.0,104480.0,0.46163]
[1748885228141,1.70519963,104490.0,104480.0,0.01435]
[1748885228455,0.1913362,104480.0,104470.0,0.0889925]
[1748885228642,0.8519996,104480.0,104470.0,0.5362325]
[1748885229440,0.8519996,104480.0,104470.0,0.52659743]
[1748885229650,0.8519996,104480.0,104470.0,0.53459743]
[1748885229847,0.9519996,104480.0,104470.0,0.53459743]
[1748885230044,0.9519996,104480.0,104470.0,0.08735743]
[1748885230246,0.9519996,104480.0,104470.0,0.53447743]
[1748885230441,0.9519996,104480.0,104470.0,0.08735743]
[1748885230642,0.9519996,104480.0,104470.0,0.53447743]
[1748885231040,0.9519996,104480.0,104470.0,0.54882743]
[1748885231454,0.9519996,104480.0,104470.0,0.10170743]
[1748885231657,0.9519996,104480.0,104470.0,0.54882743]
[1748885231854,0.9519996,104480.0,104470.0,0.74018193]
[1748885232158,0.9519996,104480.0,104470.0,0.83018193]
[1748885232353,0.9221996,104480.0,104470.0,0.92858193]
[1748885232553,0.9219996,104480.0,104470.0,0.92858193]
[1748885232748,0.9219996,104480.0,104470.0,1.11858193]
[1748885232950,0.9221996,104480.0,104470.0,1.11858193]
[1748885233145,0.7156362,104480.0,104470.0,1.11858193]
[1748885233749,0.9221996,104480.0,104470.0,1.11858193]
[1748885234142,0.5613996,104480.0,104470.0,1.11858193]
[1748885236158,0.5613996,104480.0,104470.0,1.17033321]
[1748885239262,0.5613996,104480.0,104470.0,0.72321321]
[1748885239456,0.5713996,104480.0,104470.0,1.00733321]
[1748885240054,0.5713996,104480.0,104470.0,0.97443321]
[1748885240458,0.9321996,104480.0,104470.0,0.97443321]
[1748885241365,0.9321996,104480.0,104470.0,0.97444076]